fUSD/lending_fUSD_20250804
["ID","MTS","AMOUNT","RATE_DAILY","PERIOD"]
[377179202,1754268672766,-400.0,0.00049762,120]
[377179203,1754268672775,-492.61,0.00049762,120]
[377179204,1754268672784,-1019.68,0.00049762,120]
[377179205,1754268672793,-400.0,0.00049762,120]
[377179206,1754268672802,-400.0,0.00049762,120]
[377179207,1754268672811,-693.58,0.00049762,120]
[377179208,1754268672822,-587.22,0.00049762,120]
[377179209,1754268672831,-703.36,0.00049762,120]
[377179210,1754268672840,-469.98557865,0.00049762,120]
[377179211,1754268672850,-400.0,0.00049762,120]
[377179212,1754268672859,-400.0,0.00049762,120]
[377179213,1754268672868,-543.65,0.00049762,120]
[377179214,1754268672878,-400.0,0.00049762,120]
[377179215,1754268672888,-400.0,0.00049762,120]
[377179216,1754268672897,-468.51,0.00049762,120]
[377179217,1754268672906,-495.42,0.00049762,120]
[377179218,1754268672915,-571.01,0.00049762,120]
[377179219,1754268672925,-400.0,0.00049762,120]
[377179220,1754268672934,-400.0,0.00049762,120]
[377179221,1754268672944,-400.0,0.00049762,120]
[377179222,1754268672953,-951.61,0.00049762,120]
[377179223,1754268672963,-1324.48,0.00049762,120]
[377179224,1754268672972,-257.41584862,0.00049762,120]
[377179225,1754268672982,-926.35,0.00049762,120]
[377179226,1754268672991,-400.0,0.00049762,120]
[377179227,1754268673000,-942.67,0.00049762,120]
[377179228,1754268673009,-400.0,0.00049762,120]
[377179229,1754268673018,-400.0,0.00049762,120]
[377179230,1754268673027,-400.0,0.00049762,120]
[377179231,1754268673037,-240.08084788,0.00049762,120]
[377179232,1754268673047,-774.71,0.00049762,2]
[377179233,1754268673056,-456.96,0.00049762,120]
[377179234,1754268673065,-400.0,0.00049762,120]
[377179235,1754268673074,-400.0,0.00049762,120]
[377179236,1754268673086,-400.0,0.00049762,120]
[377179237,1754268673095,-514.87,0.00049762,120]
[377179238,1754268673105,-415.85,0.00049762,120]
[377179239,1754268673114,-903.59,0.00049762,120]
[377179240,1754268673123,-1185.83,0.00049762,120]
[377179241,1754268673132,-400.0,0.00049762,120]
[377179242,1754268673141,-400.0,0.00049762,120]
[377179243,1754268673151,-400.0,0.00049762,120]
[377179244,1754268673160,-400.0,0.00049762,120]
[377179245,1754268673170,-1465.1,0.00049762,120]
[377179246,1754268673179,-857.32,0.00049762,120]
[377179247,1754268673188,-400.0,0.00049762,120]
[377179248,1754268673197,-524.75,0.00049762,120]
[377179249,1754268673207,-400.0,0.00049762,120]
[377179250,1754268673216,-415.82,0.00049762,120]
[377179251,1754268673225,-400.0,0.00049762,120]
[377179252,1754268673235,-400.0,0.00049762,120]
[377179253,1754268673244,-400.0,0.00049762,120]
[377179254,1754268673253,-1050.8,0.00049762,120]
[377179255,1754268673262,-700.06,0.00049762,120]
[377179256,1754268673271,-1526.54,0.00049762,120]
[377179257,1754268673280,-384.88765484,0.00049762,120]
[377179258,1754268673289,-400.0,0.00049762,120]
[377179259,1754268673299,-400.0,0.00049762,120]
[377179260,1754268673308,-400.0,0.00049762,120]
[377179261,1754268673317,-400.0,0.00049762,120]
[377179262,1754268673326,-894.73,0.00049762,120]
[377179263,1754268673337,-1175.66,0.00049762,120]
[377179264,1754268673346,-400.0,0.00049762,120]
[377179265,1754268673355,-915.67,0.00049762,120]
[377179266,1754268673364,-966.88,0.00049762,120]
[377179267,1754268673373,-400.0,0.00049762,120]
[377179268,1754268673383,-472.66,0.00049762,120]
[377179269,1754268673392,-400.0,0.00049762,120]
[377179270,1754268673401,-400.0,0.00049762,120]
[377179271,1754268673411,-300.0,0.00049762,120]
[377179272,1754268673420,-400.0,0.00049762,120]
[377179273,1754268673429,-400.0,0.00049762,120]
[377179274,1754268673438,-400.0,0.00049762,120]
[377179275,1754268673447,-400.0,0.00049762,120]
[377179276,1754268673456,-1505.21,0.00049762,120]
[377179277,1754268673465,-647.16,0.00049762,120]
[377179278,1754268673475,-400.0,0.00049762,120]
[377179279,1754268673484,-1025.56,0.00049762,120]
[377179280,1754268673498,-151.0,0.00049762,120]
[377179281,1754268673517,-400.0,0.00049762,120]
[377179282,1754268673530,-400.0,0.00049762,120]
[377179283,1754268673546,-400.0,0.00049762,120]
[377179284,1754268673564,-1338.88,0.00049762,120]
[377179285,1754268673583,-400.0,0.00049762,120]
[377179286,1754268673595,-430.02,0.00049762,120]
[377179287,1754268673610,-1087.32,0.00049762,120]
[377179288,1754268673626,-400.0,0.00049762,120]
[377179289,1754268673644,-531.2378665,0.00049762,120]
[377179290,1754268673660,-516.68,0.00049762,120]
[377179291,1754268673676,-400.0,0.00049762,120]
[377179292,1754268673693,-400.0,0.00049762,120]
[377179293,1754268673708,-801.59,0.00049762,120]
[377179294,1754268673724,-456.45,0.00049762,120]
[377179295,1754268673740,-400.0,0.00049762,120]
[377179296,1754268673754,-400.0,0.00049762,120]
[377179297,1754268673767,-151.0,0.00049762,120]
[377179298,1754268673786,-400.0,0.00049762,120]
[377179299,1754268673799,-151.0,0.00049762,120]
[377179300,1754268673818,-1552.07,0.00049762,120]
[377179301,1754268673832,-400.0,0.00049762,120]
[377179302,1754268673843,-421.03,0.00049762,120]
[377179303,1754268673859,-979.49,0.00049762,120]
[377179304,1754268673873,-400.0,0.00049762,120]
[377179305,1754268673887,-400.0,0.00049762,120]
[377179306,1754268673901,-400.0,0.00049762,120]
[377179307,1754268673915,-500.0,0.00049762,120]
[377179308,1754268673929,-400.0,0.00049762,120]
[377179309,1754268673942,-151.0,0.00049762,120]
[377179310,1754268673955,-409.63944299,0.00049762,120]
[377179311,1754268673968,-635.5,0.00049762,120]
[377179312,1754268673982,-400.0,0.00049762,120]
[377179313,1754268673995,-400.0,0.00049762,120]
[377179314,1754268674009,-400.0,0.00049762,120]
[377179315,1754268674024,-151.0,0.00049762,120]
[377179316,1754268674038,-400.0,0.00049762,60]
[377179317,1754268674052,-151.0,0.00049762,120]
[377179318,1754268674065,-698.78,0.00049762,120]
[377179319,1754268674078,-400.0,0.00049762,120]
[377179320,1754268674093,-400.0,0.00049762,120]
[377179321,1754268674106,-573.51,0.00049762,120]
[377179322,1754268674119,-400.0,0.00049762,120]
[377179323,1754268674133,-1529.14,0.00049762,120]
[377179324,1754268674146,-151.0,0.00049762,120]
[377179325,1754268674159,-400.0,0.00049762,120]
[377179326,1754268674173,-458.21,0.00049762,120]
[377179327,1754268674186,-151.0,0.00049762,120]
[377179328,1754268674200,-509.06,0.00049762,120]
[377179329,1754268674213,-400.0,0.00049762,120]
[377179330,1754268674227,-400.0,0.00049762,120]
[377179331,1754268674240,-528.094712,0.00049762,120]
[377179332,1754268674253,-789.14,0.00049762,120]
[377179333,1754268674265,-151.0,0.00049762,120]
[377179334,1754268674278,-400.0,0.00049762,120]
[377179335,1754268674291,-151.0,0.00049762,120]
[377179336,1754268674303,-400.0,0.00049762,120]
[377179337,1754268674316,-400.0,0.00049762,120]
[377179338,1754268674329,-400.0,0.00049762,120]
[377179339,1754268674344,-151.0,0.00049762,120]
[377179340,1754268674357,-423.23,0.00049762,30]
[377179341,1754268674371,-670.31,0.00049762,120]
[377179342,1754268674385,-400.0,0.00049762,120]
[377179343,1754268674397,-151.0,0.00049762,60]
[377179344,1754268674411,-400.0,0.00049762,120]
[377179345,1754268674424,-488.78,0.00049762,120]
[377179346,1754268674436,-400.0,0.00049762,120]
[377179347,1754268674448,-526.89,0.00049762,120]
[377179348,1754268674460,-400.0,0.00049762,120]
[377179349,1754268674473,-1448.55,0.00049762,120]
[377179350,1754268674486,-400.0,0.00049762,120]
[377179351,1754268674500,-400.0,0.00049762,120]
[377179352,1754268674513,-400.0,0.00049762,120]
[377179353,1754268674526,-151.0,0.00049762,120]
[377179354,1754268674540,-1301.65,0.00049762,120]
[377179355,1754268674552,-400.0,0.00049762,120]
[377179356,1754268674565,-400.0,0.00049762,120]
[377179357,1754268674578,-417.446691,0.00049762,120]
[377179358,1754268674593,-400.0,0.00049762,120]
[377179359,1754268674613,-417.446691,0.00049762,120]
[377179360,1754268674625,-1338.8,0.00049762,120]
[377179361,1754268674639,-400.0,0.00049762,120]
[377179362,1754268674652,-400.0,0.00049762,120]
[377179363,1754268674665,-1237.03,0.00049762,120]
[377179364,1754268674678,-151.0,0.00049762,120]
[377179365,1754268674693,-712.17,0.00049762,120]
[377179366,1754268674706,-151.0,0.00049762,120]
[377179367,1754268674719,-769.66,0.00049762,120]
[377179368,1754268674732,-442.21,0.00049762,120]
[377179369,1754268674746,-701.08,0.00049762,120]
[377179370,1754268674760,-400.0,0.00049762,120]
[377179371,1754268674773,-400.0,0.00049762,120]
[377179372,1754268674786,-151.0,0.00049762,120]
[377179373,1754268674799,-400.0,0.00049762,120]
[377179374,1754268674813,-400.0,0.00049762,120]
[377179375,1754268674825,-400.0,0.00049762,120]
[377179376,1754268674840,-434.79497896,0.00049762,120]
[377179377,1754268674853,-400.0,0.00049762,120]
[377179378,1754268674866,-400.0,0.00049762,120]
[377179379,1754268674880,-400.0,0.00049762,120]
[377179380,1754268674893,-400.0,0.00049762,120]
[377179381,1754268674906,-805.41,0.00049762,120]
[377179382,1754268674920,-400.0,0.00049762,120]
[377179383,1754268674933,-400.0,0.00049762,120]
[377179384,1754268674946,-696.53,0.00049762,120]
[377179385,1754268674959,-400.0,0.00049762,120]
[377179386,1754268674973,-400.0,0.00049762,120]
[377179387,1754268674987,-912.95,0.00049762,120]
[377179388,1754268675000,-400.0,0.00049762,120]
[377179389,1754268675013,-905.71,0.00049762,120]
[377179390,1754268675027,-400.0,0.00049762,120]
[377179391,1754268675043,-580.23,0.00049762,120]
[377179392,1754268675056,-793.8,0.00049762,120]
[377179393,1754268675069,-168.395824,0.00049762,120]
[377179394,1754268675084,-400.0,0.00049762,120]
[377179395,1754268675096,-168.395824,0.00049762,120]
[377179396,1754268675110,-225.704179,0.00049762,120]
[377179397,1754268675122,-552.79,0.00049762,120]
[377179398,1754268675135,-225.704179,0.00049762,120]
[377179399,1754268675148,-400.0,0.00049762,120]
[377179400,1754268675161,-1237.18,0.00049762,120]
[377179401,1754268675173,-223.149411,0.00049762,120]
[377179402,1754268675186,-223.149411,0.00049762,120]
[377179403,1754268675198,-450.25,0.00049762,120]
[377179404,1754268675212,-795.25,0.00049762,120]
[377179405,1754268675224,-400.0,0.00049762,120]
[377179406,1754268675237,-400.0,0.00049762,120]
[377179407,1754268675251,-400.0,0.00049762,120]
[377179408,1754268675263,-400.0,0.00049762,120]
[377179409,1754268675275,-756.53,0.00049762,120]
[377179410,1754268675289,-1351.92,0.00049762,120]
[377179411,1754268675301,-400.0,0.00049762,120]
[377179412,1754268675313,-1388.21,0.00049762,120]
[377179413,1754268675326,-698.43,0.00049762,120]
[377179414,1754268675339,-400.0,0.00049762,120]
[377179415,1754268675352,-400.0,0.00049762,120]
[377179416,1754268675364,-589.66,0.00049762,120]
[377179417,1754268675377,-400.0,0.00049762,120]
[377179418,1754268675389,-867.69,0.00049762,120]
[377179419,1754268675402,-410.00873871,0.00049762,120]
[377179420,1754268675414,-400.0,0.00049762,120]
[377179421,1754268675427,-400.0,0.00049762,120]
[377179422,1754268675439,-400.0,0.00049762,120]
[377179423,1754268675452,-400.0,0.00049762,120]
[377179424,1754268675464,-400.0,0.00049762,120]
[377179425,1754268675477,-446.14,0.00049762,120]
[377179426,1754268675489,-155.918805,0.00049762,120]
[377179427,1754268675502,-596.56,0.00049762,120]
[377179428,1754268675514,-400.0,0.00049762,120]
[377179429,1754268675527,-400.0,0.00049762,120]
[377179430,1754268675539,-400.0,0.00049762,120]
[377179431,1754268675552,-295.245203,0.00049762,120]
[377179432,1754268675567,-841.86,0.00049762,120]
[377179433,1754268675580,-151.0,0.00049762,120]
[377179434,1754268675594,-295.245203,0.00049762,120]
[377179435,1754268675606,-400.0,0.00049762,120]
[377179436,1754268675619,-400.0,0.00049762,120]
[377179437,1754268675631,-151.0,0.00049762,120]
[377179438,1754268675644,-151.0,0.00049762,120]
[377179439,1754268675656,-611.64,0.00049762,120]
[377179440,1754268675669,-151.0,0.00049762,120]
[377179441,1754268675683,-151.0,0.00049762,120]
[377179442,1754268675697,-400.0,0.00049762,120]
[377179443,1754268675710,-400.0,0.00049762,120]
[377179444,1754268675723,-400.0,0.00049762,120]
[377179445,1754268675737,-400.0,0.00049762,120]
[377179446,1754268675751,-724.66,0.00049762,120]
[377179447,1754268675765,-881.24,0.00049762,120]
[377179448,1754268675779,-520.555924,0.00049762,120]
[377179449,1754268675791,-456.99,0.00049762,120]
[377179450,1754268675803,-520.555924,0.00049762,120]
[377179451,1754268675816,-980.28,0.00049762,120]
[377179452,1754268675829,-400.0,0.00049762,120]
[377179453,1754268675843,-151.0,0.00049762,118]
[377179454,1754268675856,-151.0,0.00049762,90]
[377179455,1754268675869,-400.0,0.00049762,120]
[377179456,1754268675882,-510.92,0.00049762,120]
[377179457,1754268675895,-400.0,0.00049762,120]
[377179458,1754268675908,-174.594282,0.00049762,120]
[377179459,1754268675920,-174.594282,0.00049762,120]
[377179460,1754268675933,-400.0,0.00049762,120]
[377179461,1754268675946,-400.0,0.00049762,120]
[377179462,1754268675960,-400.0,0.00049762,120]
[377179463,1754268675973,-459.38,0.00049762,120]
[377179464,1754268675987,-400.0,0.00049762,120]
[377179465,1754268676000,-400.0,0.00049762,120]
[377179466,1754268676014,-151.0,0.00049762,120]
[377179467,1754268676027,-400.0,0.00049762,120]
[377179468,1754268676041,-400.0,0.00049762,120]
[377179469,1754268676054,-400.0,0.00049762,120]
[377179470,1754268676069,-400.0,0.00049762,120]
[377179471,1754268676079,-400.0,0.00049762,120]
[377179472,1754268676090,-400.0,0.00049762,120]
[377179473,1754268676099,-611.13,0.00049762,120]
[377179474,1754268676109,-657.96,0.00049762,120]
[377179475,1754268676119,-1601.2,0.00049762,120]
[377179476,1754268676128,-400.0,0.00049762,120]
[377179477,1754268676137,-529.68,0.00049762,120]
[377179478,1754268676148,-400.0,0.00049762,120]
[377179479,1754268676586,-927.89,0.00049762,120]
[377179480,1754268676612,-600.0,0.00049768,30]
[377179481,1754268676638,-150.0,0.0004977,7]
[377179482,1754268676657,-768.0,0.00049779,60]
[377179483,1754268676667,-6825.84,0.000498,30]
[377179484,1754268676677,-41797.66,0.000498,30]
[377179485,1754268676690,-151.0,0.000498,120]
[377179486,1754268676699,-247.269414,0.000498,120]
[377179487,1754268676709,-247.269414,0.000498,120]
[377179488,1754268676719,-461.348579,0.000498,120]
[377179489,1754268676728,-461.348579,0.000498,120]
[377179490,1754268676737,-515.0,0.00049831,24]
[377179491,1754268676747,-855.13,0.00049862,120]
[377179492,1754268676756,-150.0,0.00049862,7]
[377179493,1754268676765,-150.0,0.00049862,7]
[377179494,1754268676776,-300.0,0.00049862,120]
[377179495,1754268676786,-400.0,0.00049863,120]
[377179496,1754268676795,-213.687699,0.00049863,120]
[377179497,1754268676804,-213.687699,0.00049863,120]
[377179498,1754268676814,-400.0,0.00049863,120]
[377179499,1754268676825,-151.0,0.00049863,120]
[377179500,1754268676836,-400.0,0.00049863,120]
[377179501,1754268676845,-400.0,0.00049863,120]
[377179502,1754268676854,-1244.74,0.00049863,120]
[377179503,1754268676863,-826.02,0.00049863,120]
[377179504,1754268676874,-453.71,0.00049863,120]
[377179505,1754268676883,-661.4,0.00049863,120]
[377179506,1754268676892,-664.09,0.00049863,120]
[377179507,1754268676902,-400.0,0.00049863,120]
[377179508,1754268676912,-400.0,0.00049863,120]
[377179509,1754268676921,-400.0,0.00049863,120]
[377179510,1754268676932,-400.0,0.00049863,120]
[377179511,1754268676941,-151.0,0.00049863,120]
[377179512,1754268676951,-400.0,0.00049863,120]
[377179513,1754268676960,-151.0,0.00049863,120]
[377179514,1754268676970,-855.87,0.00049863,120]
[377179515,1754268676980,-151.0,0.00049863,120]
[377179516,1754268676989,-400.0,0.00049863,120]
[377179517,1754268676998,-400.0,0.00049863,120]
[377179518,1754268677008,-467.5,0.00049863,120]
[377179519,1754268677017,-598.51,0.00049863,30]
[377179520,1754268677027,-1194.47,0.00049863,120]
[377179521,1754268677036,-400.0,0.00049863,120]
[377179522,1754268677046,-400.0,0.00049863,120]
[377179523,1754268677056,-400.0,0.00049863,120]
[377179524,1754268677066,-510.02,0.00049863,120]
[377179525,1754268677076,-718.03,0.00049863,120]
[377179526,1754268677087,-418.52,0.00049863,120]
[377179527,1754268677096,-400.0,0.00049863,120]
[377179528,1754268677106,-400.0,0.00049863,120]
[377179529,1754268677116,-489.19,0.00049863,120]
[377179530,1754268677125,-151.0,0.00049863,120]
[377179531,1754268677135,-1095.36,0.00049863,120]
[377179532,1754268677144,-400.0,0.00049863,120]
[377179533,1754268677155,-400.0,0.00049863,120]
[377179534,1754268677164,-1000.0,0.00049863,120]
[377179535,1754268677173,-990.86,0.00049863,120]
[377179536,1754268677183,-400.0,0.00049863,120]
[377179537,1754268677192,-400.0,0.00049863,120]
[377179538,1754268677201,-400.0,0.00049863,120]
[377179539,1754268677210,-850.97,0.00049863,120]
[377179540,1754268677219,-865.45,0.00049863,120]
[377179541,1754268677228,-400.0,0.00049863,120]
[377179542,1754268677237,-1434.0,0.00049863,120]
[377179543,1754268677247,-607.27,0.00049863,120]
[377179544,1754268677256,-400.0,0.00049863,120]
[377179545,1754268677265,-400.0,0.00049863,120]
[377179546,1754268677274,-675.28,0.00049863,120]
[377179547,1754268677283,-400.0,0.00049863,120]
[377179548,1754268677293,-400.0,0.00049863,7]
[377179549,1754268677302,-151.0,0.00049863,120]
[377179550,1754268677311,-400.0,0.00049863,120]
[377179551,1754268677320,-400.0,0.00049863,120]
[377179552,1754268677329,-400.0,0.00049863,120]
[377179553,1754268677341,-400.0,0.00049863,120]
[377179554,1754268677356,-400.0,0.00049863,120]
[377179555,1754268677365,-400.0,0.00049863,120]
[377179556,1754268677374,-400.0,0.00049863,120]
[377179557,1754268677383,-488.32836101,0.00049863,120]
[377179558,1754268677392,-400.0,0.00049863,120]
[377179559,1754268677401,-400.0,0.00049863,120]
[377179560,1754268677410,-193.0,0.00049863,60]
[377179561,1754268677419,-400.0,0.00049863,120]
[377179562,1754268677428,-750.62,0.00049863,120]
[377179563,1754268677437,-492.25,0.00049863,120]
[377179564,1754268677447,-400.0,0.00049863,120]
[377179565,1754268677456,-400.0,0.00049863,120]
[377179566,1754268677465,-151.0,0.00049863,120]
[377179567,1754268677475,-400.0,0.00049863,120]
[377179568,1754268677485,-787.81,0.00049863,120]
[377179569,1754268677494,-565.68,0.00049863,120]
[377179570,1754268677503,-400.0,0.00049863,120]
[377179571,1754268677512,-900.36,0.00049863,120]
[377179572,1754268677521,-400.0,0.00049863,120]
[377179573,1754268677531,-204.054223,0.00049863,120]
[377179574,1754268677540,-883.51,0.00049863,120]
[377179575,1754268677550,-477.55996885,0.00049863,120]
[377179576,1754268677559,-975.62,0.00049863,120]
[377179577,1754268677569,-400.0,0.00049863,120]
[377179578,1754268677578,-204.054223,0.00049863,120]
[377179579,1754268677589,-990.06,0.00049863,120]
[377179580,1754268677599,-870.66,0.00049863,120]
[377179581,1754268677608,-1058.79,0.00049863,120]
[377179582,1754268677618,-1110.44,0.00049863,120]
[377179583,1754268677627,-151.0,0.00049863,120]
[377179584,1754268677637,-151.0,0.00049863,120]
[377179585,1754268677646,-400.0,0.00049863,120]
[377179586,1754268677655,-553.62,0.00049863,120]
[377179587,1754268677665,-798.77,0.00049863,120]
[377179588,1754268677675,-1232.01,0.00049863,120]
[377179589,1754268677686,-1443.52,0.00049863,120]
[377179590,1754268677697,-1344.32,0.00049863,120]
[377179591,1754268677708,-400.0,0.00049863,120]
[377179592,1754268677718,-400.0,0.00049863,120]
[377179593,1754268677729,-1013.93,0.00049863,120]
[377179594,1754268677738,-400.0,0.00049863,120]
[377179595,1754268677747,-658.48,0.00049863,120]
[377179596,1754268677758,-871.17,0.00049863,120]
[377179597,1754268677767,-400.0,0.00049863,120]
[377179598,1754268677777,-151.0,0.00049863,120]
[377179599,1754268677786,-702.32,0.00049863,120]
[377179600,1754268677795,-400.0,0.00049863,120]
[377179601,1754268677805,-400.0,0.00049863,120]
[377179602,1754268677814,-402.2788345,0.00049863,120]
[377179603,1754268677823,-400.0,0.00049863,120]
[377179604,1754268677833,-400.0,0.00049863,120]
[377179605,1754268677842,-545.46,0.00049863,120]
[377179606,1754268677851,-180.030648,0.00049863,120]
[377179607,1754268677860,-556.94,0.00049863,120]
[377179608,1754268677870,-442.97,0.00049863,120]
[377179609,1754268677878,-400.0,0.00049863,120]
[377179610,1754268677888,-602.84,0.00049863,120]
[377179611,1754268677897,-400.0,0.00049863,120]
[377179612,1754268677906,-400.0,0.00049863,120]
[377179613,1754268677915,-457.77,0.00049863,120]
[377179614,1754268677925,-703.12,0.00049863,120]
[377179615,1754268677934,-857.91,0.00049863,120]
[377179616,1754268677943,-705.48,0.00049863,120]
[377179617,1754268677952,-400.0,0.00049863,120]
[377179618,1754268677962,-400.0,0.00049863,120]
[377179619,1754268677971,-871.66,0.00049863,120]
[377179620,1754268677980,-400.0,0.00049863,120]
[377179621,1754268677990,-400.0,0.00049863,120]
[377179622,1754268677999,-400.0,0.00049863,120]
[377179623,1754268678008,-1332.56,0.00049863,120]
[377179624,1754268678018,-1325.47,0.00049863,120]
[377179625,1754268678027,-400.0,0.00049863,120]
[377179626,1754268678036,-689.05,0.00049863,120]
[377179627,1754268678046,-400.0,0.00049863,120]
[377179628,1754268678056,-1022.67,0.00049863,120]
[377179629,1754268678066,-1436.9,0.00049863,120]
[377179630,1754268678075,-462.19,0.00049863,120]
[377179631,1754268678086,-400.0,0.00049863,120]
[377179632,1754268678095,-400.0,0.00049863,120]
[377179633,1754268678105,-1537.44,0.00049863,120]
[377179634,1754268678115,-841.11,0.00049863,120]
[377179635,1754268678124,-400.0,0.00049863,120]
[377179636,1754268678134,-400.0,0.00049863,120]
[377179637,1754268678143,-664.01,0.00049863,120]
[377179638,1754268678153,-400.0,0.00049863,120]
[377179639,1754268678162,-452.74,0.00049863,120]
[377179640,1754268678172,-400.0,0.00049863,120]
[377179641,1754268678182,-1114.01,0.00049863,120]
[377179642,1754268678192,-891.04,0.00049863,120]
[377179643,1754268678201,-771.0,0.00049863,120]
[377179644,1754268678211,-257.618581,0.00049863,120]
[377179645,1754268678220,-400.0,0.00049863,120]
[377179646,1754268678229,-400.0,0.00049863,120]
[377179647,1754268678239,-1179.25,0.00049863,120]
[377179648,1754268678248,-400.0,0.00049863,120]
[377179649,1754268678257,-1272.49,0.00049863,120]
[377179650,1754268678266,-458.09,0.00049863,120]
[377179651,1754268678275,-400.0,0.00049863,120]
[377179652,1754268678284,-484.25,0.00049863,60]
[377179653,1754268678293,-400.0,0.00049863,120]
[377179654,1754268678303,-414.36,0.00049863,120]
[377179655,1754268678312,-400.0,0.00049863,120]
[377179656,1754268678322,-400.0,0.00049863,120]
[377179657,1754268678331,-400.0,0.00049863,120]
[377179658,1754268678344,-400.0,0.00049863,120]
[377179659,1754268678353,-726.76,0.00049863,120]
[377179660,1754268678362,-879.77,0.00049863,120]
[377179661,1754268678372,-908.23,0.00049863,120]
[377179662,1754268678381,-400.0,0.00049863,120]
[377179663,1754268678390,-1411.22,0.00049863,120]
[377179664,1754268678400,-400.0,0.00049863,120]
[377179665,1754268678409,-619.25,0.00049863,120]
[377179666,1754268678418,-400.0,0.00049863,120]
[377179667,1754268678428,-400.0,0.00049863,120]
[377179668,1754268678438,-2247.490381,0.00049863,120]
[377179669,1754268678447,-400.0,0.00049863,120]
[377179670,1754268678457,-400.0,0.00049863,120]
[377179671,1754268678466,-559.47,0.00049863,120]
[377179672,1754268678476,-400.0,0.00049863,120]
[377179673,1754268678485,-400.0,0.00049863,120]
[377179674,1754268678495,-400.0,0.00049863,120]
[377179675,1754268678504,-1917.81123,0.00049863,120]
[377179676,1754268678513,-609.62,0.00049863,120]
[377179677,1754268678523,-2057.412942,0.00049863,120]
[377179678,1754268678532,-151.0,0.00049863,120]
[377179679,1754268678541,-400.0,0.00049863,120]
[377179680,1754268678550,-400.0,0.00049863,120]
[377179681,1754268678559,-400.0,0.00049863,120]
[377179682,1754268678568,-647.79,0.00049863,120]
[377179683,1754268678578,-400.0,0.00049863,120]
[377179684,1754268678589,-400.0,0.00049863,120]
[377179685,1754268678599,-642.74,0.00049863,120]
[377179686,1754268678609,-400.0,0.00049863,120]
[377179687,1754268678618,-400.0,0.00049863,120]
[377179688,1754268678627,-461.68,0.00049863,120]
[377179689,1754268678637,-637.63,0.00049863,120]
[377179690,1754268678647,-1766.94,0.00049863,120]
[377179691,1754268678656,-400.0,0.00049863,120]
[377179692,1754268678665,-400.0,0.00049863,120]
[377179693,1754268678675,-400.0,0.00049863,120]
[377179694,1754268678686,-400.0,0.00049863,120]
[377179695,1754268678696,-400.0,0.00049863,120]
[377179696,1754268678705,-212.23315263,0.00049863,120]
[377179697,1754268678715,-937.13,0.00049863,120]
[377179698,1754268678724,-400.0,0.00049863,120]
[377179699,1754268678734,-1018.9,0.00049863,120]
[377179700,1754268678744,-400.0,0.00049863,120]
[377179701,1754268678754,-1452.21,0.00049863,120]